Cogmind - Beta 12 --- EXPLORER MODE // 2023.11.18 @ 00:51:36 Player: wadebtw Result: Self-destructed Performance ------------- Evolutions (1) 500 Regions Visited (4) 800 Robots Destroyed (30) 150 Value Destroyed (539) 539 Prototype IDs (2) 40 Alien Tech Used (0) 0 Bonus (0) 0 TOTAL SCORE: 2029 Bonus ------- None Cogmind --------- Core Integrity 362/400 Matter 246/300 Energy 280/280 System Corruption 4% Temperature Warm (159) Movement Walking (120) Location -9/Mines Parts ------- > --- POWER (1) -------- Heavy Ion Engine > --- PROPULSION (3) --- Aluminum Leg Aluminum Leg Aluminum Leg > --- UTILITY (4) ------ Medium Storage Unit Weight Redist. System Light Armor Plating Light Armor Plating > --- WEAPON (2) ------- Heavy Assault Rifle Improved Light Cannon > --- INVENTORY (10) --- Light Ion Engine Heavy Ion Engine Light Treads Light Treads Heat Sink Improved Heat Sink Experimental Sensor Array Targeting Computer Light Armor Plating Assault Rifle Peak State ------------ > --- POWER ------------ Heavy Ion Engine > --- PROPULSION ------- Aluminum Leg Aluminum Leg Aluminum Leg > --- UTILITY ---------- Medium Storage Unit Weight Redist. System Light Armor Plating Light Armor Plating > --- WEAPON ----------- Heavy Assault Rifle Improved Light Cannon > --- INVENTORY -------- Light Ion Engine Light Ion Engine Light Treads Light Treads Heat Sink Improved Heat Sink Experimental Sensor Array Targeting Computer Light Armor Plating Assault Rifle [Rating: 17] Favorites ----------- Power Light Ion Engine Engine Light Ion Engine Propulsion Aluminum Leg Leg Aluminum Leg Utility Light Armor Plating Device Weight Redist. System Storage Medium Storage Unit Protection Light Armor Plating Weapon Assault Rifle Ballistic Gun Assault Rifle Ballistic Cannon Light Cannon Build | -11 -10 -10 -9 -9 ------- Run | Jun Mat Min Mat Min Slots Evolved 3 | . 1 . 2 . Power . | . . . . . Propulsion 1 | . . . 1 . Utility 2 | . 1 . 1 . Weapon . | . . . . . Parts Attached 20 | 7 4 1 8 . Power 4 | 1 . 1 2 . Engine 4 | 1 . 1 2 . Core . | . . . . . Reactor . | . . . . . Propulsion 3 | 2 . . 1 . Treads . | . . . . . Leg 3 | 2 . . 1 . Wheel . | . . . . . Hover . | . . . . . Flight . | . . . . . Utility 7 | 2 3 . 2 . Device 1 | . . . 1 . Storage 1 | 1 . . . . Processor . | . . . . . Hackware . | . . . . . Protection 5 | 1 3 . 1 . Artifact . | . . . . . Weapon 6 | 2 1 . 3 . Energy Gun . | . . . . . Energy Cannon . | . . . . . Ballistic Gun 4 | 2 1 . 1 . Ballistic Cannon 2 | . . . 2 . Launcher . | . . . . . Special Weapon . | . . . . . Impact Weapon . | . . . . . Slashing Weapon . | . . . . . Piercing Weapon . | . . . . . Special Melee Weapon . | . . . . . Unidentified Prototypes 1 | . . . 1 . Parts Lost . | . . . . . Power . | . . . . . Propulsion . | . . . . . Utility . | . . . . . Weapon . | . . . . . Highest Loss Streak . | . . . . . To Critical Strikes . | . . . . . Average Slot Usage (%) 88 | . 86 86 87 100 Engine 11 | . 12 11 10 10 Leg 26 | . 25 25 29 30 Device 2 | . . . 3 10 Storage 11 | . 12 12 10 10 Protection 13 | . 11 12 14 20 Ballistic Gun 20 | . 25 25 15 10 Ballistic Cannon 2 | . . . 4 10 Naked Turns . | . . . . . Heaviest Build 31 | 20 20 20 31 31 Greatest Support 36 | 20 20 20 36 36 Greatest Overweight (x) . | . . . . . Average Overweight (x) . | . . . . . Largest Inventory Capacity 10 | 10 10 10 10 10 Average Capacity 9 | 6 10 10 10 10 Most Carried 10 | 5 9 10 10 10 Average Carried 8 | 4 6 8 9 10 Final Capacity 10 | 10 10 10 10 10 Final Carried 10 | 5 7 10 10 10 Class Distribution -------------------- 100% | Hacker-Mutant Dominant Class ---------------- Hacker-Mutant | -10/Materials Hacker-Mutant | -10/Mines Hacker-Mutant | -9/Materials Hacker-Mutant | -9/Mines Resources | -11 -10 -10 -9 -9 ----------- Run | Jun Mat Min Mat Min Matter Collected 755 | 192 142 125 243 53 Remotely . | . . . . . Salvage Created 861 | . 52 340 449 20 Parts 67 | . 7 25 32 3 Haulers Intercepted 2 | . . . 2 . Recyclers Shooed 1 | . . 1 . . Parts Field Recycled . | . . . . . Retrieved Matter . | . . . . . Parts Self-Destructed . | . . . . . Prevented . | . . . . . Kills | -11 -10 -10 -9 -9 ------- Run | Jun Mat Min Mat Min Combat Hostiles Destroyed 22 | . 2 6 11 3 Guns 18 | . 2 6 9 1 Cannons 4 | . . . 2 2 Classes Destroyed 7 | . 2 2 3 . Hauler 2 | . . . 2 . Recycler 3 | . . 3 . . Operator 1 | . . . 1 . Watcher 2 | . 1 . 1 . Swarmer 14 | . 2 4 5 3 Grunt 4 | . . 2 2 . Sentry 4 | . . . 4 . Best Kill Streak 6 | . 2 4 6 3 Combat Bots Only 6 | . 2 2 6 3 Max Kills in Single Turn 2 | . 1 2 1 1 Gunslinging 1 | . . 1 . . Exploded . | . . . . . Melee . | . . . . . Uniques/NPCs Destroyed . | . . . . . Combat | -11 -10 -10 -9 -9 -------- Run | Jun Mat Min Mat Min Damage Taken 389 | . 11 136 173 69 Core 58 | . . 20 22 16 Absorbed by Shields . | . . . . . Regen/Repaired (Parts) 35 | . 35 . . . Core Remaining (%) 96 | 100 . 92 . . Volleys Fired 64 | . 4 20 34 6 Largest 2 | . 2 2 2 2 Hottest 62 | . 40 40 62 62 Shots Fired 128 | . 8 40 68 12 Gun 103 | . 8 40 49 6 Cannon 25 | . . . 19 6 Launcher . | . . . . . Special . | . . . . . Kinetic 128 | . 8 40 68 12 Thermal . | . . . . . Explosive . | . . . . . Electromagnetic . | . . . . . Robot Hit Streak 14 | . 6 9 14 6 Robot Miss Streak 3 | . 1 3 1 1 Penetration Max . | . . . . . Secondary Targets 3 | . . 1 2 . Max Gunslinging Chain 1 | . . 1 1 . Shots Hit Robots 94 | . 6 28 51 9 Core Hits 44 | . 4 15 22 3 Critical Kills . | . . . . . Critical Parts Destroyed . | . . . . . Critical Strikes 1 | . . . 1 . Blast 1 | . . . 1 . Melee Attacks . | . . . . . Impact . | . . . . . Slashing . | . . . . . Piercing . | . . . . . Sneak Attacks . | . . . . . Combat Hostiles . | . . . . . Follow-up Attacks . | . . . . . Damage Inflicted 1346 | . 77 370 742 157 Guns 951 | . 77 370 451 53 Cannons 395 | . . . 291 104 Explosions . | . . . . . Melee . | . . . . . Ramming . | . . . . . Kinetic 1346 | . 77 370 742 157 Thermal . | . . . . . Explosive . | . . . . . Electromagnetic . | . . . . . Impact . | . . . . . Slashing . | . . . . . Piercing . | . . . . . Highest Corruption 4 | . . . 4 4 Average Corruption 4 | . . . 4 4 Corruption Purged . | . . . . . Corruption Blocked . | . . . . . Effects 4 | . . . . 4 Heat Flow Errors 2 | . . . . 2 Energy Discharges 1 | . . . . 1 Alerts 1 | . . . . 1 Overload Shots . | . . . . . Overflow Damage 4 | . . . . 4 Projectiles 4 | . . . . 4 Explosions . | . . . . . Melee . | . . . . . Knockbacks 3 | . . . . 3 Impact . | . . . . . Kinetic 3 | . . . . 3 Secondary . | . . . . . Self-Inflicted Damage . | . . . . . Shots . | . . . . . Rammed . | . . . . . Targets Rammed . | . . . . . Kicked . | . . . . . Crushed . | . . . . . Highest Temperature 253 | . . 13 30 253 Average Temperature 68 | . . 4 10 175 Received Heat Transfer 156 | . . 87 69 . Effects 2 | . . . . 2 Energy Bleed 2 | . . . . 2 Siege Activations . | . . . . . Robots Corrupted . | . . . . . Combat Hostiles . | . . . . . Parts Fried . | . . . . . Impact Corruptions . | . . . . . Robots Melted . | . . . . . Combat Hostiles . | . . . . . Parts Melted . | . . . . . Heat Transferred . | . . . . . Parts Sabotaged . | . . . . . Parts Stolen . | . . . . . Parts Stripped . | . . . . . Power Chain Reactions . | . . . . . Missiles Intercepted . | . . . . . Alert | -11 -10 -10 -9 -9 ------- Run | Jun Mat Min Mat Min Peak Influence 321 | . 104 100 321 106 Initial 36 | . . . 12 36 Average 68 | . 46 50 112 82 Maximum Alert Level 1 | . . . 1 . Low Security (%) 95 | 100 100 100 84 100 Level 1 4 | . . . 15 . Level 2 . | . . . . . Level 3 . | . . . . . Level 4 . | . . . . . Level 5 . | . . . . . High Security . | . . . . . Max Security . | . . . . . Squads Dispatched 1 | . . . 1 . Investigation 1 | . . . 1 . Extermination . | . . . . . Reinforcement . | . . . . . Assault . | . . . . . Garrison . | . . . . . Intercept . | . . . . . Searches Triggered . | . . . . . Construction Impeded . | . . . . . Haulers Reinforced . | . . . . . Active Scanning Responses . | . . . . . Cargo Convoy Interrupts . | . . . . . Stealth | -11 -10 -10 -9 -9 --------- Run | Jun Mat Min Mat Min Distress Signals 4 | . 1 . 3 . Communications Jammed . | . . . . . Distress Signals . | . . . . . Times Spotted 32 | . 4 6 19 3 Peak Tracking Total 7 | . 2 2 7 3 Tactical Retreats 3 | . 1 1 1 . Traps | -11 -10 -10 -9 -9 ------- Run | Jun Mat Min Mat Min Traps Triggered 2 | . 2 . . . Indirectly . | . . . . . Trap Hack Attempts . | . . . . . Triggered . | . . . . . Disarmed . | . . . . . Reprogrammed . | . . . . . Reused . | . . . . . Traps Extracted . | . . . . . Installed . | . . . . . Triggered . | . . . . . Machines | -11 -10 -10 -9 -9 ---------- Run | Jun Mat Min Mat Min Machines Disabled . | . . . . . Max in Single Turn . | . . . . . Machines Repaired . | . . . . . Machines Sabotaged . | . . . . . Overloaded Fab Kills . | . . . . . Hacking | -11 -10 -10 -9 -9 --------- Run | Jun Mat Min Mat Min Machines Accessed 2 | . 1 . 1 . Terminals . | . . . . . Fabricators . | . . . . . Repair Stations 1 | . 1 . . . Recycling Units . | . . . . . Scanalyzers 1 | . . . 1 . Garrison Access . | . . . . . Total Hacks 5 | . 2 . 3 . Successful 3 | . 2 . 1 . Failed 2 | . . . 2 . Catastrophic . | . . . . . Database Lockouts . | . . . . . Manual . | . . . . . Terminals . | . . . . . Fabricators . | . . . . . Repair Stations 2 | . 2 . . . Recycling Units . | . . . . . Scanalyzers 3 | . . . 3 . Garrison Access . | . . . . . Terminal Hacks . | . . . . . Fabricator Hacks . | . . . . . Repair Station Hacks 2 | . 2 . . . Scan Component 1 | . 1 . . . Repair 1 | . 1 . . . Recycling Unit Hacks . | . . . . . Scanalyzer 1 | . . . 1 . Insert Component 1 | . . . 1 . Garrison Access Hacks . | . . . . . Unauthorized Hacks . | . . . . . Terminals . | . . . . . Fabricators . | . . . . . Repair Stations . | . . . . . Recycling Units . | . . . . . Scanalyzers . | . . . . . Garrison Access . | . . . . . Data Cores Recovered 1 | . . . 1 . Used . | . . . . . Hacking Detections 1 | . . . 1 . Full Trace Events 1 | . . . 1 . Feedback Events . | . . . . . Feedback Blocked . | . . . . . Robot Schematics Acquired . | . . . . . Robots Built . | . . . . . Authchips . | . . . . . Time . | . . . . . Total Robot Build Rating . | . . . . . Part Schematics Acquired . | . . . . . Parts Built . | . . . . . Authchips . | . . . . . Time . | . . . . . Total Part Build Rating . | . . . . . Parts Repaired 1 | . 1 . . . Time 26 | . 26 . . . Parts Recycled . | . . . . . Recycled Matter . | . . . . . Retrieved Matter . | . . . . . Retrieved Components . | . . . . . Parts Scanalyzed 1 | . . . 1 . Part Schematics Acquired . | . . . . . Parts Damaged . | . . . . . Bothacking | -11 -10 -10 -9 -9 ------------ Run | Jun Mat Min Mat Min Used RIF Installer . | . . . . . Robots Hacked . | . . . . . Non-combat . | . . . . . Combat . | . . . . . Robot Hacks Applied . | . . . . . Relay Couplers Released . | . . . . . Fabnet Peak Effective % . | . . . . . Robots Rewired . | . . . . . Allies Hacked . | . . . . . Hacks Repelled . | . . . . . Allies | -11 -10 -10 -9 -9 -------- Run | Jun Mat Min Mat Min Total Allies 3 | . . . . 3 Largest Group 3 | . . . . 3 Highest-Rated Group 40 | . . . . 40 Highest-Rated Ally 16 | . . . . 16 Total Orders . | . . . . . Ally Attacks . | . . . . . Total Damage . | . . . . . Kills . | . . . . . Allies Corrupted . | . . . . . Allies Melted . | . . . . . Intel | -11 -10 -10 -9 -9 ------- Run | Jun Mat Min Mat Min Robot Analysis Total . | . . . . . Derelict Logs Recovered 2 | . . 2 . . Drone Launches . | . . . . . Drone Recoveries . | . . . . . Exploration | -11 -10 -10 -9 -9 ------------- Run | Jun Mat Min Mat Min Turns Passed 2179 | 96 417 855 632 179 Spaces Moved 1504 | 71 284 636 380 133 Core 10 | 10 . . . . Treads . | . . . . . Legs 1494 | 61 284 636 380 133 Wheels . | . . . . . Hover . | . . . . . Flight . | . . . . . Fastest Speed 50 | 50 120 120 120 120 Average Speed 119 | 110 120 120 120 120 Slowest Speed 120 | 120 120 120 120 120 Overloaded Moves . | . . . . . Propulsion Burnouts . | . . . . . Robots Hopped . | . . . . . Cave-ins Triggered . | . . . . . Exploration Rate (%) 45 | 4 49 98 36 39 Regions Visited 4 Branch Regions 2 Pre-discovered Areas 2 | . . 1 . 1 Known Exits Taken 4 | 1 1 1 1 . Unknown Exits Taken . | . . . . . Scrap Searched 2 | . . 1 . 1 Spaces Dug . | . . . . . Terrain Destroyed . | . . . . . Melee . | . . . . . Projectile . | . . . . . AOE . | . . . . . Terrain Rammed . | . . . . . Walls Destroyed . | . . . . . Machines Disabled . | . . . . . Actions | -11 -10 -10 -9 -9 --------- Run | Jun Mat Min Mat Min Total 1754 | 87 352 688 487 140 Wait 142 | . 55 27 59 1 Move 1500 | 70 283 635 379 133 Hop . | . . . . . Pick Up 21 | 9 6 4 2 . Fast Attach 8 | 4 . . 4 . Attach 8 | 3 4 1 . . Detach . | . . . . . Swap 4 | . . . 4 . Drop 7 | 1 . 1 5 . Fire 64 | . 4 20 34 6 Melee . | . . . . . Ram . | . . . . . Kick . | . . . . . Crush . | . . . . . Escape Stasis . | . . . . . Rewire . | . . . . . Trap . | . . . . . Miscellaneous . | . . . . . Route ------- -11/Junkyard -10/Materials (discovered 3 exits: *Mat x2 / *Min) -10/Mines (discovered 2 exits: *Mat x2) -9/Materials (discovered 3 exits: Mat / *Min x2) -9/Mines History --------- Turn | Location | Event 18 | -11/Junkyard | Identified exit to Materials 18 | -11/Junkyard | Discovered exit to Materials (range 15) 97 | -11/Junkyard | Entered Materials 97 | -10/Materials | Evolved 1 slot: Utility x1 178 | -10/Materials | Identified exit to Materials 178 | -10/Materials | Discovered exit to Materials (range 13) 315 | -10/Materials | Build established: Hacker-Mutant 331 | -10/Materials | Identified exit to Mines 331 | -10/Materials | Discovered exit to Mines (range 16) 379 | -10/Materials | Repaired Lgt. Armor Plating 424 | -10/Materials | Discovered exit to Materials (range 6) 514 | -10/Materials | Entered Mines 524 | -10/Mines | Discovered exit to Materials (range 7) 942 | -10/Mines | Discovered exit to Materials (range 7) 1083 | -10/Mines | Learned location of 1 exit from Materials 1109 | -10/Mines | Found a damaged Exp. Sensor Array with a note attached 1113 | -10/Mines | Found Prototype Device 1369 | -10/Mines | Entered Materials 1369 | -9/Materials | Evolved 2 slots: Propulsion x1, Utility x1 1370 | -9/Materials | Identified exit to Materials 1546 | -9/Materials | Identified Exp. Sensor Array 1610 | -9/Materials | Identified exit to Mines 1610 | -9/Materials | Discovered exit to Mines (range 8) 1944 | -9/Materials | Discovered exit to Mines (range 13) 2001 | -9/Materials | Entered Mines 2002 | -9/Mines | Learned location of Storage (-9) 2149 | -9/Mines | Assisted by bots powering up and referring to "LRC-V3" 2180 | -9/Mines | Self-destructed Last Messages --------------- 02049_ Destroyed Flight Unit. 02049_ S-10 Pest knocked back. 02057_ Overheating: Energy bleed (-67). 02058_ S-10 Pest destroyed. 02066_ Overheating: Energy bleed (-47). 02067_ Acquired 8 matter. 02068_ Acquired 6 matter. 02070_ Acquired 5 matter. 02071_ Acquired 2 matter. 02072_ Acquired 6 matter. 02121_ K-01 Serf collects debris. 02129_ System corrupted: IFF burst signal emitted. 02137_ Searching scrap... 02137_ Found Mace. 02137_ Found 26 Matter. 02138_ Acquired 26 matter. 02149_ Trooper 2a: "Hello LRC-V3. What is your command?" 02149_ Mercenary 2a: "Hello LRC-V3. What is your command?" 02149_ Trooper 2b: "Hello LRC-V3. What is your command?" 02172_ System corrupted: Heat flow error (+266). Map ----- +----------------------------------------------------+ | | | | | | | | | | | | | | | | | | | | | | | ???????????????????????????????????????????????? | | ?????????###???????????????????????????????????? | | ???????## ##??????????????????????????????????? | | ??????## #????????######????????????????????? | | ?###### #???????? ##???????????????????? | | ?# #???????? #???????????????????? | | ?# #?????????? ##?????????????????? | | ?# #?#???????? #?????????????????? | | ?### ##?# ???????# """ ##????????????????? | | ##### ## #??? ###???## """ ##???????????????? | | ### ## #???? #???# """ ##??????????????? | | ## ## #????# #???# #??????????????? | | # ## ###### ###### #??????????????? | | gt #??????????????? | | / gg @ #??????????????? | | ############# ##### ##??????????????? | | #???????????# #???## ##???????????????? | | ##???????????# #????### ##????????????????? | | ##???????????# ??????? ###?????????????????? | | # #??????????? ??????? #???????????????????? | | ## #??????????? ?????? #???????????????????? | | ## #??????????? ?????? #???????????????????? | | # #?????????? ?????? #???????????????????? | | ##?????????? ??????#???????????????????? | | #??????????? ??????????????????????????? | | #??????????? ??????????????????????????? | | ##?????????? ?????????????????????????? | | ##??????????? ? ? ??????????????????????????? | | ##?????????????? ????????????????????????????? | | ???????????????????????????????????????????????? | | ???????????????????????????????????????????????? | | ???????????????????????????????????????????????? | | ???????????????????????????????????????????????? | | ???????????????????????????????????????????????? | | ???????????????????????????????????????????????? | | ???????????????????????????????????????????????? | | ???????????????????????????????????????????????? | | ???????????????????????????????????????????????? | | ???????????????????????????????????????????????? | +----------------------------------------------------+ Best States ------------- Heat Dissipation 28 Energy Generation 14 Energy Capacity 280 Matter Stores 300 Matter Capacity 300 Sight Range 16 Terrain Scan Density 10 Additional Mass Support 6 Armor Coverage 300 Resistance: KI 35 Resistance: TH 35 Resistance: EX 35 Resistance: EM 35 Resistance: I 35 Resistance: S 35 Resistance: P 35 Evasion (%) 55 Offensive Hacking 20 Item Schematics ----------------- None Robot Schematics ------------------ None Fabricated ------------ Nothing Alien Tech Used ----------------- None Achievements -------------- None Challenges ------------ None Game ------ Seed LaserDecoyTerrabomb Manual? 0 Play Time 00:17:57 Cumulative 22.1 hours Start 2023.11.18 @ 00:33:39 End 2023.11.18 @ 00:51:36 Sessions 1 Manual Loads 0 Difficulty Explorer Special Mode None Game No. 26 Rogue 23 Adventurer 0 Explorer 3 Win Type - Total 0 Types 0/0/0/0/0/0/0/0/0 Lore% 25 Gallery% 29 Achievement% 27 Wizard Run 0 Options --------- ASCII 0 Keyboard 0 Movement Mouse Keybinds 0 Fullscreen 2 Font 18/SmallcapsGlow Map View 76x50 Tactical HUD 1 Map Filters NONE Filters NONE Steam 1 RUN: a044537c-9f94-4113-95fb-de847e6ddcd8